fUSD/lending_fUSD_20251201
["ID","MTS","AMOUNT","RATE_DAILY","PERIOD"]
[395257952,1764573051182,-163.94,0.0001644,2]
[395257953,1764573051191,-12614.97504208,0.00016441,2]
[395257954,1764573051201,-150.0,0.0001645,2]
[395257955,1764573051211,-163.70980013,0.00016454,2]
[395257956,1764573051222,-228.29835367,0.00016454,2]
[395257957,1764573051231,-150.0,0.00016457,2]
[395257958,1764573051240,-150.0,0.00016457,2]
[395257959,1764573051249,-150.0,0.00016462,2]
[395257960,1764573051258,-150.0,0.00016469,2]
[395257961,1764573051267,-163.70980013,0.00016472,2]
[395257962,1764573051276,-228.29835367,0.00016472,2]
[395257963,1764573051286,-150.0,0.00016477,2]
[395257964,1764573051295,-4512.22,0.00016477,2]
[395257965,1764573051304,-150.0,0.00016479,2]
[395257966,1764573051313,-3300.0,0.00016479,2]
[395257967,1764573051322,-150.0,0.0001648,2]
[395257968,1764573051331,-150.0,0.00016485,2]
[395257969,1764573051340,-427.65493559,0.00016485,2]
[395257970,1764573051349,-150.0,0.00016487,2]
[395257971,1764573051360,-163.70980013,0.00016489,2]
[395257972,1764573051370,-228.29835367,0.00016489,2]
[395257973,1764573051379,-484.4802032,0.00016489,2]
[395257974,1764573051389,-150.0,0.00016493,2]
[395257975,1764573051399,-150.0,0.00016501,2]
[395257976,1764573051408,-150.0,0.00016501,2]
[395257977,1764573051419,-163.70980013,0.00016506,2]
[395257978,1764573051429,-228.29835367,0.00016506,2]
[395257979,1764573051439,-150.0,0.00016509,2]
[395257980,1764573051448,-150.0,0.00016512,2]
[395257981,1764573051457,-150.0,0.00016513,2]
[395257982,1764573051466,-11342.96089445,0.00016518,2]
[395257983,1764573051476,-163.70980013,0.00016523,2]
[395257984,1764573051485,-150.0,0.00016523,2]
[395257985,1764573051494,-228.29835367,0.00016523,2]
[395257986,1764573051503,-150.0,0.00016533,2]
[395257987,1764573051513,-3300.0,0.00016534,2]
[395257988,1764573051524,-150.0,0.00016537,2]
[395257989,1764573051536,-150.0,0.00016539,2]
[395257990,1764573051546,-163.70980013,0.0001654,2]
[395257991,1764573051555,-228.29835367,0.0001654,2]
[395257992,1764573051565,-150.0,0.00016541,2]
[395257993,1764573051575,-150.0,0.00016543,2]
[395257994,1764573051584,-150.0,0.00016545,2]
[395257995,1764573051594,-150.0,0.00016548,2]
[395257996,1764573051603,-610.27009638,0.00016556,2]
[395257997,1764573051613,-163.70980013,0.00016557,2]
[395257998,1764573051622,-228.29835367,0.00016557,2]
[395257999,1764573051632,-150.0,0.00016562,2]
[395258000,1764573051641,-150.0,0.00016562,2]
[395258001,1764573051650,-150.0,0.00016562,2]
[395258002,1764573051659,-150.0,0.00016567,2]
[395258003,1764573051668,-150.0,0.00016569,2]
[395258004,1764573051678,-150.0,0.00016569,2]
[395258005,1764573051687,-163.70980013,0.00016575,2]
[395258006,1764573051697,-228.29835367,0.00016575,2]
[395258007,1764573051706,-500.0,0.00016575,2]
[395258008,1764573051715,-150.0,0.00016587,2]
[395258009,1764573051726,-3300.0,0.00016589,2]
[395258010,1764573051736,-150.0,0.00016589,2]
[395258011,1764573051745,-163.70980013,0.00016592,2]
[395258012,1764573051755,-228.29835367,0.00016592,2]
[395258013,1764573051765,-150.0,0.00016596,2]
[395258014,1764573051775,-150.0,0.00016599,2]
[395258015,1764573051784,-1000.0,0.000166,2]
[395258016,1764573051794,-150.0,0.00016603,2]
[395258017,1764573051803,-163.70980013,0.00016609,2]
[395258018,1764573051812,-228.29835367,0.00016609,2]
[395258019,1764573051822,-150.0,0.00016611,2]
[395258020,1764573051831,-150.0,0.00016612,2]
[395258021,1764573051841,-150.0,0.00016617,2]
[395258022,1764573051850,-1000.0,0.00016621,2]
[395258023,1764573051860,-150.0,0.00016624,2]
[395258024,1764573051869,-163.70980013,0.00016626,2]
[395258025,1764573051880,-228.29835367,0.00016626,2]
[395258026,1764573051890,-150.0,0.00016629,2]
[395258027,1764573051900,-150.0,0.00016633,2]
[395258028,1764573052033,-150.0,0.00016637,2]
[395258029,1764573052044,-823.0,0.00016641,2]
[395258030,1764573052054,-823.0,0.00016641,2]
[395258031,1764573052063,-163.70980013,0.00016643,2]
[395258032,1764573052072,-228.29835367,0.00016643,2]
[395258033,1764573052082,-3300.0,0.00016644,2]
[395258034,1764573052092,-150.0,0.00016647,2]
[395258035,1764573052101,-150.0,0.00016647,2]
[395258036,1764573052111,-150.0,0.00016652,2]
[395258037,1764573052121,-150.0,0.00016655,2]
[395258038,1764573052130,-150.0,0.00016658,2]
[395258039,1764573052140,-150.0,0.00016658,2]
[395258040,1764573052149,-5491.65035635,0.0001666,2]
[395258041,1764573052159,-163.70980013,0.0001666,2]
[395258042,1764573052168,-228.29835367,0.0001666,2]
[395258043,1764573052178,-150.0,0.00016662,2]
[395258044,1764573052187,-163.70980013,0.00016677,2]
[395258045,1764573052197,-150.0,0.00016677,2]
[395258046,1764573052207,-228.29835367,0.00016677,2]
[395258047,1764573052217,-150.0,0.0001668,2]
[395258048,1764573052226,-150.0,0.00016687,2]
[395258049,1764573052235,-1575.36,0.00016688,2]
[395258050,1764573052245,-200.0,0.00016688,2]
[395258051,1764573052254,-500.0,0.00016688,2]
[395258052,1764573052264,-200.0,0.00016688,2]
[395258053,1764573052275,-150.0,0.00016688,2]
[395258054,1764573052285,-150.0,0.00016691,2]
[395258055,1764573052295,-484.4802032,0.00016695,2]
[395258056,1764573052305,-163.70980013,0.00016695,2]
[395258057,1764573052315,-228.29835367,0.00016695,2]
[395258058,1764573052325,-194.72792766,0.00016697,2]
[395258059,1764573052335,-151.0,0.00016697,2]
[395258060,1764573052345,-533.88981491,0.00016697,2]
[395258061,1764573052355,-642.94,0.00016697,2]
[395258062,1764573052364,-194.72792766,0.00016697,2]
[395258063,1764573052374,-151.0,0.00016697,2]
[395258064,1764573052383,-151.0,0.00016697,2]
[395258065,1764573052394,-500.0,0.00016698,2]
[395258066,1764573052404,-3300.0,0.00016699,2]
[395258067,1764573052413,-150.0,0.000167,2]
[395258068,1764573052423,-1000.0,0.000167,2]
[395258069,1764573052434,-150.0,0.00016708,2]
[395258070,1764573052443,-150.0,0.00016712,2]
[395258071,1764573052452,-163.70980013,0.00016712,2]
[395258072,1764573052462,-228.29835367,0.00016712,2]
[395258073,1764573052472,-163.1222244,0.00016712,2]
[395258074,1764573052482,-150.0,0.00016712,2]
[395258075,1764573052491,-151.0,0.00016713,2]
[395258076,1764573052500,-150.0,0.00016718,2]
[395258077,1764573052510,-150.0,0.00016722,2]
[395258078,1764573052519,-222.76990664,0.00016728,2]
[395258079,1764573052532,-163.70980013,0.00016729,2]
[395258080,1764573052541,-228.29835367,0.00016729,2]
[395258081,1764573052551,-15718.8954656,0.0001673,2]
[395258082,1764573052561,-150.0,0.00016736,2]
[395258083,1764573052571,-150.0,0.00016737,2]
[395258084,1764573052580,-150.0,0.00016744,2]
[395258085,1764573052590,-150.0,0.00016744,2]
[395258086,1764573052600,-6911.10840627,0.00016745,2]
[395258087,1764573052612,-163.70980013,0.00016746,2]
[395258088,1764573052622,-228.29835367,0.00016746,2]
[395258089,1764573052631,-150.0,0.00016748,2]
[395258090,1764573052641,-3300.0,0.00016754,2]
[395258091,1764573052651,-150.0,0.0001676,2]
[395258092,1764573052661,-150.0,0.00016761,2]
[395258093,1764573052670,-163.70980013,0.00016763,2]
[395258094,1764573052679,-228.29835367,0.00016763,2]
[395258095,1764573052690,-150.0,0.00016764,2]
[395258096,1764573052701,-150.0,0.00016765,2]
[395258097,1764573052711,-150.0,0.00016766,2]
[395258098,1764573052722,-150.0,0.00016767,2]
[395258099,1764573052732,-3292.0,0.00016772,2]
[395258100,1764573052741,-150.0,0.00016778,2]
[395258101,1764573052750,-163.70980013,0.0001678,2]
[395258102,1764573052760,-228.29835367,0.0001678,2]
[395258103,1764573052769,-1513.10536683,0.00016785,2]
[395258104,1764573052778,-150.0,0.00016786,2]
[395258105,1764573052787,-150.0,0.00016788,2]
[395258106,1764573052797,-150.0,0.00016791,2]
[395258107,1764573052805,-163.70980013,0.00016798,2]
[395258108,1764573052814,-228.29835367,0.00016798,2]
[395258109,1764573052823,-150.0,0.00016807,2]
[395258110,1764573052832,-3300.0,0.00016809,2]
[395258111,1764573052842,-150.0,0.0001681,2]
[395258112,1764573052851,-150.0,0.00016811,2]
[395258113,1764573052861,-2162.66,0.00016814,2]
[395258114,1764573052871,-163.70980013,0.00016815,2]
[395258115,1764573052880,-228.29835367,0.00016815,2]
[395258116,1764573052889,-150.0,0.00016816,2]
[395258117,1764573052899,-150.0,0.00016819,2]
[395258118,1764573052909,-150.0,0.00016822,2]
[395258119,1764573052918,-163.70980013,0.00016832,2]
[395258120,1764573052927,-150.0,0.00016832,2]
[395258121,1764573052937,-228.29835367,0.00016832,2]
[395258122,1764573052946,-150.0,0.00016836,2]
[395258123,1764573052955,-150.0,0.00016837,2]
[395258124,1764573052965,-150.0,0.00016839,2]
[395258125,1764573052974,-150.0,0.00016847,2]
[395258126,1764573052983,-163.70980013,0.00016849,2]
[395258127,1764573052993,-228.29835367,0.00016849,2]
[395258128,1764573053002,-150.0,0.00016854,2]
[395258129,1764573053012,-1169.06569469,0.00016856,2]
[395258130,1764573053022,-150.0,0.00016861,2]
[395258131,1764573053031,-200.0,0.00016863,2]
[395258132,1764573053041,-2000.0,0.00016864,2]
[395258133,1764573053051,-200.0,0.00016864,2]
[395258134,1764573053061,-200.0,0.00016864,2]
[395258135,1764573053070,-3300.0,0.00016864,2]
[395258136,1764573053080,-163.70980013,0.00016866,2]
[395258137,1764573053091,-228.29835367,0.00016866,2]
[395258138,1764573053101,-150.0,0.00016867,2]
[395258139,1764573053111,-150.0,0.00016873,2]
[395258140,1764573053121,-150.0,0.00016875,2]
[395258141,1764573053132,-150.0,0.00016876,2]
[395258142,1764573053142,-150.0,0.00016877,2]
[395258143,1764573053152,-163.70980013,0.00016883,2]
[395258144,1764573053164,-228.29835367,0.00016883,2]
[395258145,1764573053174,-150.0,0.00016886,2]
[395258146,1764573053184,-1000.0,0.00016892,2]
[395258147,1764573053194,-150.0,0.00016897,2]
[395258148,1764573053204,-150.0,0.00016898,2]
[395258149,1764573053215,-4512.22,0.00016899,2]
[395258150,1764573053224,-10000.0,0.000169,2]
[395258151,1764573053235,-1632.21619087,0.000169,2]
[395258152,1764573053245,-1000.0,0.000169,2]
[395258153,1764573053254,-12614.97504208,0.000169,2]
[395258154,1764573053264,-38850.81143401,0.000169,2]
[395258155,1764573053274,-1841.0142248,0.000169,2]
[395258156,1764573053284,-484.4802032,0.000169,2]
[395258157,1764573053294,-500.0,0.000169,2]
[395258158,1764573053303,-500.0,0.000169,2]
[395258159,1764573053318,-500.0,0.000169,2]
[395258160,1764573053328,-500.0,0.000169,2]
[395258161,1764573053338,-500.0,0.000169,2]
[395258162,1764573053351,-500.0,0.000169,2]
[395258163,1764573053361,-500.0,0.000169,2]
[395258164,1764573053371,-468.47698181,0.000169,2]
[395258165,1764573053381,-11980.0,0.000169,2]
[395258166,1764573053391,-163.70980013,0.00016901,2]
[395258167,1764573053402,-228.29835367,0.00016901,2]
[395258168,1764573053412,-150.0,0.00016903,2]
[395258169,1764573053422,-150.0,0.00016911,2]
[395258170,1764573053432,-150.0,0.00016912,2]
[395258171,1764573053442,-163.70980013,0.00016918,2]
[395258172,1764573053452,-228.29835367,0.00016918,2]
[395258173,1764573053462,-220.07,0.0001692,2]
[395258174,1764573053472,-150.0,0.0001692,2]
[395258175,1764573053482,-9999.99,0.00016922,2]
[395258176,1764573053493,-19443.82,0.00016922,2]
[395258177,1764573053503,-150.0,0.00016927,2]
[395258178,1764573053513,-150.0,0.00016931,2]
[395258179,1764573053523,-150.0,0.00016932,2]
[395258180,1764573053538,-163.70980013,0.00016935,2]
[395258181,1764573053548,-228.29835367,0.00016935,2]
[395258182,1764573053558,-150.0,0.00016936,2]
[395258183,1764573053570,-150.0,0.00016942,2]
[395258184,1764573053580,-500.0,0.00016945,2]
[395258185,1764573053591,-604.47,0.00016945,2]
[395258186,1764573053602,-500.0,0.00016945,2]
[395258187,1764573053611,-500.0,0.00016945,2]
[395258188,1764573053621,-500.0,0.00016945,2]
[395258189,1764573053631,-500.0,0.00016945,2]
[395258190,1764573053642,-500.0,0.00016945,2]
[395258191,1764573053652,-500.0,0.00016945,2]
[395258192,1764573053663,-500.0,0.00016945,2]
[395258193,1764573053673,-500.0,0.00016945,2]
[395258194,1764573053683,-500.0,0.00016945,2]
[395258195,1764573053693,-500.0,0.00016945,2]
[395258196,1764573053703,-500.0,0.00016945,2]
[395258197,1764573053712,-500.0,0.00016945,2]
[395258198,1764573053722,-1931.13207761,0.00016946,2]
[395258199,1764573053731,-1000.74233697,0.00016946,2]
[395258200,1764573053741,-987.452036,0.00016946,2]
[395258201,1764573053751,-1500.0,0.00016946,2]
[395258202,1764573053760,-1001.24854415,0.00016946,2]
[395258203,1764573053770,-1500.0,0.00016946,2]
[395258204,1764573053780,-1585.93988918,0.00016946,2]
[395258205,1764573053789,-331.20229943,0.00016946,2]
[395258206,1764573053798,-550.61391722,0.00016946,2]
[395258207,1764573053808,-1500.0,0.00016946,2]
[395258208,1764573053817,-500.53815546,0.00016946,2]
[395258209,1764573053827,-1500.0,0.00016946,2]
[395258210,1764573053836,-1500.0,0.00016946,2]
[395258211,1764573053847,-1000.95083099,0.00016946,2]
[395258212,1764573053857,-1500.0,0.00016946,2]
[395258213,1764573053866,-1001.34823292,0.00016946,2]
[395258214,1764573053876,-271.24315862,0.00016946,2]
[395258215,1764573053887,-1500.0,0.00016946,2]
[395258216,1764573053901,-163.70980013,0.00016952,2]
[395258217,1764573053911,-228.29835367,0.00016952,2]
[395258218,1764573053920,-151.0,0.00016953,2]
[395258219,1764573053929,-500.0,0.00016955,2]
[395258220,1764573053938,-500.0,0.00016955,2]
[395258221,1764573053948,-604.47,0.00016955,2]
[395258222,1764573053958,-604.47,0.00016955,2]
[395258223,1764573053968,-500.0,0.00016955,2]
[395258224,1764573053977,-500.0,0.00016955,2]
[395258225,1764573053987,-500.0,0.00016955,2]
[395258226,1764573053997,-500.0,0.00016955,2]
[395258227,1764573054008,-500.0,0.00016955,2]
[395258228,1764573054017,-500.0,0.00016955,2]
[395258229,1764573054027,-500.0,0.00016955,2]
[395258230,1764573054036,-500.0,0.00016955,2]
[395258231,1764573054046,-500.0,0.00016955,2]
[395258232,1764573054055,-568.76021857,0.00016955,2]
[395258233,1764573054064,-500.0,0.00016955,2]
[395258234,1764573054073,-500.0,0.00016955,2]
[395258235,1764573054082,-500.0,0.00016955,2]
[395258236,1764573054093,-500.0,0.00016955,2]
[395258237,1764573054103,-530.10808563,0.00016955,2]
[395258238,1764573054112,-500.0,0.00016955,2]
[395258239,1764573054124,-500.0,0.00016955,2]
[395258240,1764573054134,-500.0,0.00016955,2]
[395258241,1764573054144,-500.0,0.00016955,2]
[395258242,1764573054154,-644.6,0.00016955,2]
[395258243,1764573054163,-644.6,0.00016955,2]
[395258244,1764573054488,-644.6,0.00016955,2]
[395258245,1764573054504,-500.0,0.00016955,2]
[395258246,1764573054513,-500.0,0.00016955,2]
[395258247,1764573054523,-500.0,0.00016955,2]
[395258248,1764573054536,-500.0,0.00016955,2]
[395258249,1764573054545,-680973.7577156,0.00016956,2]
[395258250,1764573054555,-1438.5287748,0.00016956,2]
[395258251,1764573054564,-145833.5366232,0.00016956,2]
[395258252,1764573054575,-6950.6950708,0.00016956,2]
[395258253,1764573054584,-740.9688962,0.00016956,2]
[395258254,1764573054595,-151.0,0.00016956,2]
[395258255,1764573054604,-151.0,0.00016956,2]
[395258256,1764573054614,-151.0,0.00016956,2]
[395258257,1764573054623,-151.0,0.00016956,2]
[395258258,1764573054633,-151.0,0.00016956,2]
[395258259,1764573054643,-613.532965,0.00016956,2]
[395258260,1764573054652,-613.532965,0.00016956,2]
[395258261,1764573054662,-613.532965,0.00016956,2]
[395258262,1764573054671,-613.532965,0.00016956,2]
[395258263,1764573054681,-151.0,0.00016956,2]
[395258264,1764573054690,-238.302421,0.00016956,2]
[395258265,1764573054700,-151.0,0.00016956,2]
[395258266,1764573054710,-238.302421,0.00016956,2]
[395258267,1764573054719,-238.302421,0.00016956,2]
[395258268,1764573054728,-238.302421,0.00016956,2]
[395258269,1764573054737,-255.39613,0.00016956,2]
[395258270,1764573054747,-255.39613,0.00016956,2]
[395258271,1764573054756,-153.692526,0.00016956,2]
[395258272,1764573054766,-255.39613,0.00016956,2]
[395258273,1764573054776,-255.39613,0.00016956,2]
[395258274,1764573054785,-1916.265192,0.00016956,2]
[395258275,1764573054794,-1916.265192,0.00016956,2]
[395258276,1764573054804,-1916.265192,0.00016956,2]
[395258277,1764573054814,-1916.265192,0.00016956,2]
[395258278,1764573054824,-192.812082,0.00016956,2]
[395258279,1764573054833,-192.812082,0.00016956,2]
[395258280,1764573054844,-192.812082,0.00016956,2]
[395258281,1764573054854,-192.812082,0.00016956,2]
[395258282,1764573054863,-151.0,0.00016956,2]
[395258283,1764573054873,-2871.530352,0.00016956,2]
[395258284,1764573054883,-151.0,0.00016956,2]
[395258285,1764573054892,-150.0,0.00016957,2]
[395258286,1764573054902,-150.0,0.00016958,2]
[395258287,1764573054912,-150.0,0.00016961,2]
[395258288,1764573054922,-1575.51910733,0.00016962,2]
[395258289,1764573054932,-150.0,0.00016964,2]
[395258290,1764573054941,-1577.0,0.00016968,2]
[395258291,1764573054950,-163.70980013,0.00016969,2]
[395258292,1764573054960,-228.29835367,0.00016969,2]
[395258293,1764573054969,-150.0,0.00016973,2]
[395258294,1764573054979,-162.85978352,0.00016973,2]
[395258295,1764573054988,-500.0,0.00016983,2]
[395258296,1764573054998,-13093.0,0.00016986,2]
[395258297,1764573055007,-6164.0,0.00016986,2]
[395258298,1764573055016,-153.31902391,0.00016986,2]
[395258299,1764573055026,-258.82276166,0.00016986,2]
[395258300,1764573055035,-163.70980013,0.00016986,2]
[395258301,1764573055045,-150.38501482,0.00016986,2]
[395258302,1764573055055,-255.96291346,0.00016986,2]
[395258303,1764573055066,-181.60520491,0.00016986,2]
[395258304,1764573055076,-150.42787237,0.00016986,2]
[395258305,1764573055087,-228.29835367,0.00016986,2]
[395258306,1764573055099,-151.40541107,0.00016986,2]
[395258307,1764573055108,-151.2234943,0.00016986,2]
[395258308,1764573055118,-182.17370662,0.00016986,2]
[395258309,1764573055128,-150.0,0.00016986,2]
[395258310,1764573055138,-151.79282377,0.00016986,2]
[395258311,1764573055147,-202.34922021,0.00016986,2]
[395258312,1764573055156,-600.0,0.00016986,2]
[395258313,1764573055166,-1931.13207761,0.0001699,2]
[395258314,1764573055175,-500.0,0.00016994,2]
[395258315,1764573055184,-2162.66,0.00016997,2]
[395258316,1764573055195,-229.27249885,0.00016997,2]
[395258317,1764573055205,-604.47,0.00016997,2]
[395258318,1764573055215,-500.0,0.00016997,2]
[395258319,1764573055225,-500.0,0.00016997,2]
[395258320,1764573055236,-500.0,0.00016997,2]
[395258321,1764573055247,-500.0,0.00016997,2]
[395258322,1764573055257,-500.0,0.00016997,2]
[395258323,1764573055267,-500.0,0.00016997,2]
[395258324,1764573055278,-639.66251844,0.00016997,2]
[395258325,1764573055291,-500.0,0.00016997,2]
[395258326,1764573055301,-644.6,0.00016997,2]
[395258327,1764573055311,-500.0,0.00016997,2]
[395258328,1764573055322,-500.0,0.00016997,2]
[395258329,1764573055332,-151.0,0.00016997,2]
[395258330,1764573055345,-15981.6296127,0.00016998,2]
[395258331,1764573055355,-4602.0137601,0.00016998,2]
[395258332,1764573055366,-2162.66,0.00016998,2]
[395258333,1764573055376,-2162.66,0.00016998,2]
[395258334,1764573055385,-2162.66,0.00016998,2]
[395258335,1764573055395,-2162.66,0.00016998,2]
[395258336,1764573055405,-2162.66,0.00016998,2]
[395258337,1764573055414,-2162.66,0.00016998,2]
[395258338,1764573055424,-2162.84189094,0.00016998,2]
[395258339,1764573055434,-4512.22,0.00016998,2]
[395258340,1764573055443,-4512.22,0.00016998,2]
[395258341,1764573055453,-4512.22,0.00016998,2]
[395258342,1764573055463,-4512.22,0.00016998,2]
[395258343,1764573055472,-4512.22,0.00016998,2]
[395258344,1764573055482,-4512.22,0.00016998,2]
[395258345,1764573055491,-4512.22,0.00016998,2]
[395258346,1764573055501,-4512.30746161,0.00016998,2]
[395258347,1764573055511,-500.0,0.00016998,2]
[395258348,1764573055520,-500.0,0.00016998,2]
[395258349,1764573055530,-500.0,0.00016998,2]
[395258350,1764573055543,-300.0,0.00016999,2]
[395258351,1764573055552,-197.83401754,0.00016999,2]
[395258352,1764573055561,-500.0,0.00016999,2]
[395258353,1764573055571,-500.0,0.00016999,2]
[395258354,1764573055580,-500.0,0.00016999,2]
[395258355,1764573055592,-500.0,0.00016999,2]
[395258356,1764573055601,-500.0,0.00016999,2]
[395258357,1764573055612,-500.0,0.00016999,2]
[395258358,1764573055621,-500.0,0.00016999,2]
[395258359,1764573055630,-500.0,0.00016999,2]
[395258360,1764573055640,-500.0,0.00016999,2]
[395258361,1764573055649,-500.0,0.00016999,2]
[395258362,1764573055659,-500.0,0.00016999,2]
[395258363,1764573055668,-500.0,0.00016999,2]
[395258364,1764573055678,-500.0,0.00016999,2]
[395258365,1764573055687,-500.0,0.00016999,2]
[395258366,1764573055696,-419.74,0.00016999,2]
[395258367,1764573055706,-604.47,0.00016999,2]
[395258368,1764573055715,-604.47,0.00016999,2]
[395258369,1764573055724,-604.47,0.00016999,2]
[395258370,1764573055733,-604.47,0.00016999,2]
[395258371,1764573055742,-604.47,0.00016999,2]
[395258372,1764573055752,-604.47,0.00016999,2]
[395258373,1764573055761,-500.0,0.00016999,2]
[395258374,1764573055770,-604.47,0.00016999,2]
[395258375,1764573055779,-500.0,0.00016999,2]
[395258376,1764573055789,-604.47,0.00016999,2]
[395258377,1764573055798,-500.0,0.00016999,2]
[395258378,1764573055807,-604.47,0.00016999,2]
[395258379,1764573055816,-500.0,0.00016999,2]
[395258380,1764573055825,-604.47,0.00016999,2]
[395258381,1764573055836,-500.0,0.00016999,2]
[395258382,1764573055846,-604.47,0.00016999,2]
[395258383,1764573055856,-500.0,0.00016999,2]
[395258384,1764573055865,-604.47,0.00016999,2]
[395258385,1764573055874,-500.0,0.00016999,2]
[395258386,1764573055885,-604.47,0.00016999,2]
[395258387,1764573055894,-500.0,0.00016999,2]
[395258388,1764573055904,-604.51385656,0.00016999,2]
[395258389,1764573055913,-500.0,0.00016999,2]
[395258390,1764573055923,-500.0,0.00016999,2]
[395258391,1764573055933,-510.9486006,0.00016999,2]
[395258392,1764573055942,-500.0,0.00016999,2]
[395258393,1764573055951,-620.43832599,0.00016999,2]
[395258394,1764573055960,-500.0,0.00016999,2]
[395258395,1764573055970,-500.0,0.00016999,2]
[395258396,1764573055979,-500.0,0.00016999,2]
[395258397,1764573055988,-500.0,0.00016999,2]
[395258398,1764573055998,-500.0,0.00016999,2]
[395258399,1764573056007,-500.0,0.00016999,2]
[395258400,1764573056017,-500.0,0.00016999,2]
[395258401,1764573056026,-500.0,0.00016999,2]
[395258402,1764573056036,-500.0,0.00016999,2]
[395258403,1764573056045,-500.0,0.00016999,2]
[395258404,1764573056055,-500.0,0.00016999,2]
[395258405,1764573056064,-500.0,0.00016999,2]
[395258406,1764573056073,-150.61555063,0.00016999,2]
[395258407,1764573056083,-500.0,0.00016999,2]
[395258408,1764573056093,-500.0,0.00016999,2]
[395258409,1764573056103,-500.0,0.00016999,2]
[395258410,1764573056112,-500.0,0.00016999,2]
[395258411,1764573056122,-500.0,0.00016999,2]
[395258412,1764573056131,-500.0,0.00016999,2]
[395258413,1764573056140,-500.0,0.00016999,2]
[395258414,1764573056150,-500.0,0.00016999,2]
[395258415,1764573056159,-500.0,0.00016999,2]
[395258416,1764573056169,-500.0,0.00016999,2]
[395258417,1764573056179,-500.0,0.00016999,2]
[395258418,1764573056188,-559.73089187,0.00016999,2]
[395258419,1764573056198,-500.0,0.00016999,2]
[395258420,1764573056207,-500.0,0.00016999,2]
[395258421,1764573056216,-523.35292461,0.00016999,2]
[395258422,1764573056226,-500.0,0.00016999,2]
[395258423,1764573056235,-500.0,0.00016999,2]
[395258424,1764573056245,-500.0,0.00016999,2]
[395258425,1764573056254,-500.0,0.00016999,2]
[395258426,1764573056264,-500.0,0.00016999,2]
[395258427,1764573056273,-500.0,0.00016999,2]
[395258428,1764573056283,-541.1615163,0.00016999,2]
[395258429,1764573056292,-300.0,0.00016999,2]
[395258430,1764573056305,-250.0,0.00016999,2]
[395258431,1764573056315,-250.0,0.00016999,2]
[395258432,1764573056324,-300.0,0.00016999,2]
[395258433,1764573056334,-250.0,0.00016999,2]
[395258434,1764573056344,-250.0,0.00016999,2]
[395258435,1764573056354,-250.0,0.00016999,2]
[395258436,1764573056364,-250.0,0.00016999,2]
[395258437,1764573056373,-250.0,0.00016999,2]
[395258438,1764573056383,-500.0,0.00016999,2]
[395258439,1764573056392,-500.0,0.00016999,2]
[395258440,1764573056402,-508.34597355,0.00016999,2]
[395258441,1764573056412,-644.6,0.00016999,2]
[395258442,1764573056421,-644.6,0.00016999,2]
[395258443,1764573056431,-644.6,0.00016999,2]
[395258444,1764573056440,-644.6,0.00016999,2]
[395258445,1764573056449,-644.6,0.00016999,2]
[395258446,1764573056458,-644.6,0.00016999,2]
[395258447,1764573056467,-644.6,0.00016999,2]
[395258448,1764573056476,-644.6,0.00016999,2]
[395258449,1764573056485,-644.6,0.00016999,2]
[395258450,1764573056495,-644.6,0.00016999,2]
[395258451,1764573056504,-644.6,0.00016999,2]